[Event "Titled Tuesday Blitz April 26 Early 2022"]
[White "Ianov, Viktor"]
[Black "Seo, Jung Min"]
[WhiteFideId "14102730"]
[BlackFideId "1734687"]
[WhiteElo "2161"]
[BlackElo "2401"]
[Result "0-1"]
[Round "08"]
[TimeControl "180+1"]
[Date "2022.04.26"]
[WhiteClock "0:00:44"]
[BlackClock "0:01:12"]

1. Nf3 {[%clk 0:02:56]}  Nf6 {[%clk 0:02:59]} 2. g3 {[%clk 0:02:53]}  g6 {[%clk 0:02:59]} 3. b3 {[%clk 0:02:53]}  Bg7 {[%clk 0:02:59]} 4. Bb2 {[%clk 0:02:53]}  O-O {[%clk 0:03:00]} 5. Bg2 {[%clk 0:02:53]}  c5 {[%clk 0:03:00]} 6. c4 {[%clk 0:02:52]}  d6 {[%clk 0:02:59]} 7. d4 {[%clk 0:02:52]}  Nc6 {[%clk 0:02:56]} 8. O-O {[%clk 0:02:51]}  Ne4 {[%clk 0:02:53]} 9. e3 {[%clk 0:02:50]}  cxd4 {[%clk 0:02:44]} 10. Nxd4 {[%clk 0:02:49]}  Nxd4 {[%clk 0:02:38]} 11. Bxd4 {[%clk 0:02:49]}  Bxd4 {[%clk 0:02:38]} 12. Qxd4 {[%clk 0:02:48]}  Nf6 {[%clk 0:02:38]} 13. Nc3 {[%clk 0:02:47]}  a6 {[%clk 0:02:38]} 14. Rfd1 {[%clk 0:02:46]}  Rb8 {[%clk 0:02:38]} 15. c5 {[%clk 0:02:44]}  Ne8 {[%clk 0:02:34]} 16. Ne4 {[%clk 0:02:33]}  Bg4 {[%clk 0:02:33]} 17. Rd2 {[%clk 0:02:28]}  Bf5 {[%clk 0:02:30]} 18. cxd6 {[%clk 0:02:23]}  exd6 {[%clk 0:02:30]} 19. Nxd6 {[%clk 0:02:20]}  Nxd6 {[%clk 0:02:30]} 20. Qxd6 {[%clk 0:02:20]}  Qxd6 {[%clk 0:02:30]} 21. Rxd6 {[%clk 0:02:20]}  Rfe8 {[%clk 0:02:29]} 22. Rad1 {[%clk 0:02:19]}  Re7 {[%clk 0:02:27]} 23. Rb6 {[%clk 0:02:18]}  Rc7 {[%clk 0:02:25]} 24. e4 {[%clk 0:02:15]}  Bg4 {[%clk 0:02:24]} 25. f3 {[%clk 0:02:14]}  Be6 {[%clk 0:02:24]} 26. Rd2 {[%clk 0:02:14]}  a5 {[%clk 0:02:21]} 27. Kf2 {[%clk 0:02:12]}  Ra8 {[%clk 0:02:21]} 28. f4 {[%clk 0:01:58]}  a4 {[%clk 0:02:20]} 29. b4 {[%clk 0:01:57]}  a3 {[%clk 0:02:21]} 30. e5 {[%clk 0:01:55]}  Ra7 {[%clk 0:02:21]} 31. Be4 {[%clk 0:01:51]}  Rc1 {[%clk 0:02:15]} 32. Ke3 {[%clk 0:01:50]}  Ra1 {[%clk 0:02:13]} 33. b5 {[%clk 0:01:17]}  Bxa2 {[%clk 0:02:06]} 34. Rxb7 {[%clk 0:01:12]}  Rxb7 {[%clk 0:02:06]} 35. Bxb7 {[%clk 0:01:12]}  Be6 {[%clk 0:02:04]} 36. Bd5 {[%clk 0:01:06]}  Bxd5 {[%clk 0:02:03]} 37. Rxd5 {[%clk 0:01:06]}  a2 {[%clk 0:02:03]} 38. Rd8+ {[%clk 0:01:06]}  Kg7 {[%clk 0:02:02]} 39. Ra8 {[%clk 0:01:06]}  Re1+ {[%clk 0:02:02]} 40. Kd4 {[%clk 0:01:05]}  a1=Q+ {[%clk 0:02:00]} 41. Rxa1 {[%clk 0:01:04]}  Rxa1 {[%clk 0:02:01]} 42. Kc5 {[%clk 0:01:03]}  Kf8 {[%clk 0:01:58]} 43. b6 {[%clk 0:01:03]}  Ke7 {[%clk 0:01:56]} 44. b7 {[%clk 0:01:02]}  Rb1 {[%clk 0:01:56]} 45. Kc6 {[%clk 0:01:02]}  Kd8 {[%clk 0:01:56]} 46. g4 {[%clk 0:01:01]}  h5 {[%clk 0:01:35]} 47. gxh5 {[%clk 0:00:55]}  gxh5 {[%clk 0:01:35]} 48. f5 {[%clk 0:00:55]}  h4 {[%clk 0:01:35]} 49. e6 {[%clk 0:00:55]}  fxe6 {[%clk 0:01:35]} 50. fxe6 {[%clk 0:00:55]}  h3 {[%clk 0:01:35]} 51. e7+ {[%clk 0:00:50]}  Kxe7 {[%clk 0:01:35]} 52. Kc7 {[%clk 0:00:50]}  Rc1+ {[%clk 0:01:30]} 53. Kb6 {[%clk 0:00:48]}  Ke6 {[%clk 0:01:16]} 54. b8=Q {[%clk 0:00:47]}  Rb1+ {[%clk 0:01:16]} 55. Kc7 {[%clk 0:00:47]}  Rxb8 {[%clk 0:01:16]} 56. Kxb8 {[%clk 0:00:47]}  Ke5 {[%clk 0:01:11]} 57. Kc7 {[%clk 0:00:47]}  Ke4 {[%clk 0:01:11]} 58. Kd6 {[%clk 0:00:47]}  Kf3 {[%clk 0:01:12]} 59. Ke5 {[%clk 0:00:47]}  Kg2 {[%clk 0:01:12]} 60. Kf4 {[%clk 0:00:47]}  Kxh2 {[%clk 0:01:12]} 61. Kg4 {[%clk 0:00:44]}  Kg2 {[%clk 0:01:12]} 0-1


[Site "https://www.chess.com"]

[Event "Titled Tuesday Blitz April 26 Early 2022"]
[White "Jaracz, Pawel"]
[Black "Todorovic, Bojan"]
[WhiteFideId "1102222"]
[BlackFideId "917087"]
[WhiteElo "2429"]
[BlackElo "2266"]
[Result "1-0"]
[Round "08"]
[TimeControl "180+1"]
[Date "2022.04.26"]
[WhiteClock "0:00:55"]
[BlackClock "0:00:03"]

1. e4 {[%clk 0:03:00]}  e5 {[%clk 0:02:54]} 2. Nf3 {[%clk 0:03:00]}  Nc6 {[%clk 0:02:49]} 3. Bb5 {[%clk 0:03:00]}  Nf6 {[%clk 0:02:48]} 4. d3 {[%clk 0:03:00]}  Bc5 {[%clk 0:02:47]} 5. c3 {[%clk 0:02:59]}  O-O {[%clk 0:02:44]} 6. Nbd2 {[%clk 0:02:57]}  Re8 {[%clk 0:02:43]} 7. Nf1 {[%clk 0:02:55]}  Bf8 {[%clk 0:02:40]} 8. Ng3 {[%clk 0:02:55]}  d6 {[%clk 0:02:35]} 9. O-O {[%clk 0:02:54]}  Bd7 {[%clk 0:02:34]} 10. h3 {[%clk 0:02:52]}  h6 {[%clk 0:02:33]} 11. Re1 {[%clk 0:02:51]}  g6 {[%clk 0:02:30]} 12. Ba4 {[%clk 0:02:48]}  Bg7 {[%clk 0:02:26]} 13. d4 {[%clk 0:02:45]}  Re7 {[%clk 0:02:00]} 14. d5 {[%clk 0:02:31]}  Nb8 {[%clk 0:02:00]} 15. Bc2 {[%clk 0:02:31]}  Bc8 {[%clk 0:01:58]} 16. c4 {[%clk 0:02:29]}  a5 {[%clk 0:01:56]} 17. a3 {[%clk 0:02:26]}  Nbd7 {[%clk 0:01:53]} 18. Be3 {[%clk 0:02:24]}  b6 {[%clk 0:01:50]} 19. Qd2 {[%clk 0:02:20]}  Kh7 {[%clk 0:01:49]} 20. b4 {[%clk 0:02:20]}  Ng8 {[%clk 0:01:16]} 21. Ba4 {[%clk 0:02:19]}  Nf8 {[%clk 0:00:56]} 22. Bc6 {[%clk 0:02:19]}  Ra7 {[%clk 0:00:55]} 23. c5 {[%clk 0:02:16]}  f5 {[%clk 0:00:53]} 24. cxd6 {[%clk 0:02:06]}  cxd6 {[%clk 0:00:52]} 25. bxa5 {[%clk 0:02:02]}  Rxa5 {[%clk 0:00:52]} 26. Qb4 {[%clk 0:02:01]}  b5 {[%clk 0:00:41]} 27. Bd2 {[%clk 0:01:51]}  Rea7 {[%clk 0:00:30]} 28. Bxb5 {[%clk 0:01:49]}  Qb6 {[%clk 0:00:22]} 29. a4 {[%clk 0:01:48]}  Bd7 {[%clk 0:00:18]} 30. Be3 {[%clk 0:01:47]}  Rxa4 {[%clk 0:00:11]} 31. Qxa4 {[%clk 0:01:07]}  Rxa4 {[%clk 0:00:10]} 32. Bxb6 {[%clk 0:01:07]}  Rxa1 {[%clk 0:00:09]} 33. Rxa1 {[%clk 0:01:06]}  Bxb5 {[%clk 0:00:09]} 34. Ra7 {[%clk 0:01:06]}  Nd7 {[%clk 0:00:08]} 35. Bc7 {[%clk 0:01:03]}  Bf8 {[%clk 0:00:08]} 36. exf5 {[%clk 0:01:03]}  Ngf6 {[%clk 0:00:07]} 37. Bd8 {[%clk 0:00:59]}  Kg8 {[%clk 0:00:06]} 38. Bxf6 {[%clk 0:00:55]}  Nxf6 {[%clk 0:00:06]} 39. fxg6 {[%clk 0:00:56]}  Bc4 {[%clk 0:00:03]} 40. Nf5 {[%clk 0:00:55]}  Bxd5 {[%clk 0:00:03]} 41. g7 {[%clk 0:00:55]} 1-0


[Site "https://www.chess.com"]

[Event "Titled Tuesday Blitz April 26 Early 2022"]
[White "Kucuksari, Kaan"]
[Black "Pires, Marcos Vinicius Torsani"]
[WhiteFideId "6380166"]
[BlackFideId "2118939"]
[WhiteElo "2305"]
[BlackElo "2273"]
[Result "1-0"]
[Round "08"]
[TimeControl "180+1"]
[Date "2022.04.26"]
[WhiteClock "0:00:39"]
[BlackClock "0:00:05"]

1. d4 {[%clk 0:03:00]}  d5 {[%clk 0:02:57]} 2. c4 {[%clk 0:02:59]}  e6 {[%clk 0:02:57]} 3. Nf3 {[%clk 0:02:59]}  Nf6 {[%clk 0:02:57]} 4. g3 {[%clk 0:02:57]}  Be7 {[%clk 0:02:56]} 5. Bg2 {[%clk 0:02:57]}  O-O {[%clk 0:02:57]} 6. O-O {[%clk 0:02:57]}  b6 {[%clk 0:02:54]} 7. Nc3 {[%clk 0:02:56]}  Bb7 {[%clk 0:02:54]} 8. Ne5 {[%clk 0:02:56]}  Nbd7 {[%clk 0:02:54]} 9. Bg5 {[%clk 0:02:55]}  h6 {[%clk 0:02:50]} 10. Nxd7 {[%clk 0:02:54]}  Qxd7 {[%clk 0:02:47]} 11. cxd5 {[%clk 0:02:51]}  exd5 {[%clk 0:02:33]} 12. Bxf6 {[%clk 0:02:49]}  Bxf6 {[%clk 0:02:32]} 13. Rc1 {[%clk 0:02:48]}  Rfe8 {[%clk 0:02:27]} 14. e3 {[%clk 0:02:42]}  Red8 {[%clk 0:02:17]} 15. b4 {[%clk 0:02:40]}  c6 {[%clk 0:02:14]} 16. Qb3 {[%clk 0:02:37]}  Qd6 {[%clk 0:02:00]} 17. Rfd1 {[%clk 0:02:22]}  Qe7 {[%clk 0:01:22]} 18. b5 {[%clk 0:02:05]}  c5 {[%clk 0:01:21]} 19. Nxd5 {[%clk 0:01:52]}  Bxd5 {[%clk 0:01:16]} 20. Bxd5 {[%clk 0:01:53]}  Rac8 {[%clk 0:01:13]} 21. dxc5 {[%clk 0:01:48]}  bxc5 {[%clk 0:01:00]} 22. Bc4 {[%clk 0:01:43]}  h5 {[%clk 0:00:52]} 23. h4 {[%clk 0:01:36]}  g6 {[%clk 0:00:49]} 24. Rxd8+ {[%clk 0:01:33]}  Rxd8 {[%clk 0:00:49]} 25. Rd1 {[%clk 0:01:34]}  Rxd1+ {[%clk 0:00:48]} 26. Qxd1 {[%clk 0:01:35]}  Kg7 {[%clk 0:00:49]} 27. Qd5 {[%clk 0:01:33]}  Be5 {[%clk 0:00:38]} 28. Kg2 {[%clk 0:01:31]}  Bd6 {[%clk 0:00:36]} 29. f4 {[%clk 0:01:26]}  Qxe3 {[%clk 0:00:18]} 30. Qxf7+ {[%clk 0:01:26]}  Kh6 {[%clk 0:00:18]} 31. Qf6 {[%clk 0:01:27]}  Qe4+ {[%clk 0:00:17]} 32. Kh2 {[%clk 0:01:23]}  Qc2+ {[%clk 0:00:16]} 33. Kh3 {[%clk 0:01:21]}  Qf5+ {[%clk 0:00:17]} 34. Qxf5 {[%clk 0:01:21]}  gxf5 {[%clk 0:00:18]} 35. Bf7 {[%clk 0:01:17]}  Be7 {[%clk 0:00:13]} 36. Be8 {[%clk 0:01:16]}  Bf6 {[%clk 0:00:11]} 37. Bf7 {[%clk 0:01:16]}  Bd4 {[%clk 0:00:10]} 38. Kg2 {[%clk 0:01:15]}  Bc3 {[%clk 0:00:09]} 39. Kf2 {[%clk 0:01:15]}  Bb4 {[%clk 0:00:09]} 40. Ke2 {[%clk 0:01:14]}  Bc3 {[%clk 0:00:09]} 41. a3 {[%clk 0:01:02]}  Ba5 {[%clk 0:00:08]} 42. a4 {[%clk 0:00:53]}  Bb4 {[%clk 0:00:08]} 43. Kd3 {[%clk 0:00:48]}  Be1 {[%clk 0:00:08]} 44. Ke3 {[%clk 0:00:37]}  Bxg3 {[%clk 0:00:07]} 45. a5 {[%clk 0:00:37]}  Bxh4 {[%clk 0:00:07]} 46. b6 {[%clk 0:00:38]}  axb6 {[%clk 0:00:05]} 47. a6 {[%clk 0:00:39]} 1-0


[Site "https://www.chess.com"]

[Event "Titled Tuesday Blitz April 26 Early 2022"]
[White "Laohawirapap, Prin"]
[Black "Rottenwohrer Suarez, Juan"]
[WhiteFideId "6205003"]
[BlackFideId "32068182"]
[WhiteElo "1832"]
[BlackElo "2158"]
[Result "1-0"]
[Round "08"]
[TimeControl "180+1"]
[Date "2022.04.26"]
[WhiteClock "0:01:28"]
[BlackClock "0:00:06"]

1. e4 {[%clk 0:03:00]}  g6 {[%clk 0:02:57]} 2. d4 {[%clk 0:03:00]}  Bg7 {[%clk 0:02:57]} 3. Nc3 {[%clk 0:03:00]}  d6 {[%clk 0:02:56]} 4. g4 {[%clk 0:03:00]}  c5 {[%clk 0:02:36]} 5. Be3 {[%clk 0:02:58]}  cxd4 {[%clk 0:02:11]} 6. Bxd4 {[%clk 0:02:58]}  Nf6 {[%clk 0:02:11]} 7. g5 {[%clk 0:02:55]}  Nh5 {[%clk 0:02:11]} 8. Be2 {[%clk 0:02:55]}  Nc6 {[%clk 0:02:08]} 9. Bxg7 {[%clk 0:02:44]}  Nxg7 {[%clk 0:02:08]} 10. h4 {[%clk 0:02:42]}  h6 {[%clk 0:02:05]} 11. gxh6 {[%clk 0:02:35]}  Rxh6 {[%clk 0:02:06]} 12. Qd2 {[%clk 0:02:35]}  Rh8 {[%clk 0:02:05]} 13. O-O-O {[%clk 0:02:35]}  Qa5 {[%clk 0:01:58]} 14. Kb1 {[%clk 0:02:34]}  Be6 {[%clk 0:01:57]} 15. Nf3 {[%clk 0:02:32]}  Rc8 {[%clk 0:01:44]} 16. Ng5 {[%clk 0:02:32]}  Ne5 {[%clk 0:01:32]} 17. Nxe6 {[%clk 0:02:19]}  Nxe6 {[%clk 0:01:33]} 18. f4 {[%clk 0:02:20]}  Nc4 {[%clk 0:01:29]} 19. Bxc4 {[%clk 0:02:19]}  Rxc4 {[%clk 0:01:30]} 20. f5 {[%clk 0:02:11]}  gxf5 {[%clk 0:01:20]} 21. Qd3 {[%clk 0:02:11]}  Rd4 {[%clk 0:01:17]} 22. Qe3 {[%clk 0:02:02]}  f4 {[%clk 0:01:14]} 23. Qf2 {[%clk 0:02:00]}  Rxd1+ {[%clk 0:01:09]} 24. Rxd1 {[%clk 0:02:01]}  Qh5 {[%clk 0:01:09]} 25. Qxa7 {[%clk 0:01:59]}  Kf8 {[%clk 0:00:44]} 26. Qb8+ {[%clk 0:01:47]}  Kg7 {[%clk 0:00:43]} 27. Rg1+ {[%clk 0:01:46]}  Kh7 {[%clk 0:00:39]} 28. Qxb7 {[%clk 0:01:42]}  Qxh4 {[%clk 0:00:39]} 29. e5 {[%clk 0:01:40]}  Ng5 {[%clk 0:00:24]} 30. Qxe7 {[%clk 0:01:30]}  Rg8 {[%clk 0:00:08]} 31. Ne4 {[%clk 0:01:28]}  Nxe4 {[%clk 0:00:06]} 32. Qxh4# {[%clk 0:01:28]} 1-0


[Site "https://www.chess.com"]

[Event "Titled Tuesday Blitz April 26 Early 2022"]
[White "Le, Tuan Minh"]
[Black "Oganian, Miran"]
[WhiteFideId "12401153"]
[BlackFideId "4122488"]
[WhiteElo "2450"]
[BlackElo "2357"]
[Result "1-0"]
[Round "08"]
[TimeControl "180+1"]
[Date "2022.04.26"]
[WhiteClock "0:01:07"]
[BlackClock "0:00:37"]

1. d4 {[%clk 0:03:00]}  e6 {[%clk 0:02:59]} 2. Nf3 {[%clk 0:03:01]}  d5 {[%clk 0:02:59]} 3. Bf4 {[%clk 0:03:01]}  Be7 {[%clk 0:02:59]} 4. e3 {[%clk 0:03:01]}  Nf6 {[%clk 0:02:59]} 5. c4 {[%clk 0:03:02]}  O-O {[%clk 0:02:56]} 6. Nc3 {[%clk 0:03:02]}  Ne4 {[%clk 0:02:56]} 7. Rc1 {[%clk 0:03:01]}  c6 {[%clk 0:02:53]} 8. Bd3 {[%clk 0:03:00]}  f5 {[%clk 0:02:53]} 9. O-O {[%clk 0:03:00]}  Nd7 {[%clk 0:02:53]} 10. Qb3 {[%clk 0:02:59]}  Kh8 {[%clk 0:02:51]} 11. Rfd1 {[%clk 0:02:57]}  Ndf6 {[%clk 0:02:50]} 12. Ne5 {[%clk 0:02:56]}  g5 {[%clk 0:02:38]} 13. Bg3 {[%clk 0:02:40]}  Qe8 {[%clk 0:02:36]} 14. Nxe4 {[%clk 0:02:36]}  Nxe4 {[%clk 0:02:33]} 15. Bxe4 {[%clk 0:02:32]}  fxe4 {[%clk 0:02:19]} 16. f3 {[%clk 0:02:27]}  h5 {[%clk 0:01:48]} 17. fxe4 {[%clk 0:02:23]}  h4 {[%clk 0:01:48]} 18. Be1 {[%clk 0:02:20]}  Qh5 {[%clk 0:01:38]} 19. Bb4 {[%clk 0:02:17]}  c5 {[%clk 0:01:09]} 20. Bxc5 {[%clk 0:02:17]}  Bxc5 {[%clk 0:01:09]} 21. dxc5 {[%clk 0:02:18]}  h3 {[%clk 0:01:05]} 22. Rf1 {[%clk 0:02:08]}  Bd7 {[%clk 0:01:01]} 23. Qc3 {[%clk 0:01:49]}  Qe2 {[%clk 0:00:46]} 24. Nxd7+ {[%clk 0:01:27]}  Kg8 {[%clk 0:00:46]} 25. gxh3 {[%clk 0:01:27]}  g4 {[%clk 0:00:40]} 26. Nf6+ {[%clk 0:01:06]}  Rxf6 {[%clk 0:00:38]} 27. Qxf6 {[%clk 0:01:07]}  Qxe3+ {[%clk 0:00:38]} 28. Qf2 {[%clk 0:01:07]}  Qg3+ {[%clk 0:00:37]} 29. Qxg3 {[%clk 0:01:07]} 1-0


[Site "https://www.chess.com"]

[Event "Titled Tuesday Blitz April 26 Early 2022"]
[White "Mangialardo, Tiago Carvalho"]
[Black "Hoffmann, Asa"]
[WhiteFideId "2130718"]
[BlackFideId "2001470"]
[WhiteElo "2076"]
[BlackElo "2117"]
[Result "1-0"]
[Round "08"]
[TimeControl "180+1"]
[Date "2022.04.26"]
[WhiteClock "0:00:03"]
[BlackClock "0:01:00"]

1. e4 {[%clk 0:03:00]}  d6 {[%clk 0:02:59]} 2. d4 {[%clk 0:03:00]}  Nf6 {[%clk 0:02:54]} 3. Nd2 {[%clk 0:03:00]}  c5 {[%clk 0:02:48]} 4. c3 {[%clk 0:03:00]}  Nc6 {[%clk 0:02:45]} 5. Ngf3 {[%clk 0:02:00]}  e6 {[%clk 0:02:43]} 6. Bd3 {[%clk 0:01:56]}  Be7 {[%clk 0:02:42]} 7. O-O {[%clk 0:01:56]}  O-O {[%clk 0:02:42]} 8. Qe2 {[%clk 0:01:51]}  a6 {[%clk 0:02:41]} 9. e5 {[%clk 0:01:47]}  Nd5 {[%clk 0:02:37]} 10. Ne4 {[%clk 0:01:40]}  cxd4 {[%clk 0:02:30]} 11. cxd4 {[%clk 0:01:39]}  h6 {[%clk 0:02:26]} 12. Ng3 {[%clk 0:01:15]}  Bg5 {[%clk 0:02:00]} 13. Nxg5 {[%clk 0:00:57]}  hxg5 {[%clk 0:01:59]} 14. Qh5 {[%clk 0:00:41]}  f5 {[%clk 0:01:57]} 15. exf6 {[%clk 0:00:21]}  Nxf6 {[%clk 0:01:54]} 16. Qg6 {[%clk 0:00:20]}  Nxd4 {[%clk 0:01:49]} 17. Bxg5 {[%clk 0:00:19]}  Nf5 {[%clk 0:01:44]} 18. Nh5 {[%clk 0:00:16]}  Nxh5 {[%clk 0:01:32]} 19. Bxd8 {[%clk 0:00:15]}  Nf4 {[%clk 0:01:32]} 20. Qg4 {[%clk 0:00:09]}  Nxd3 {[%clk 0:01:29]} 21. Bg5 {[%clk 0:00:07]}  Ne5 {[%clk 0:01:28]} 22. Qe2 {[%clk 0:00:06]}  Bd7 {[%clk 0:01:28]} 23. Rad1 {[%clk 0:00:06]}  Bc6 {[%clk 0:01:27]} 24. f4 {[%clk 0:00:05]}  Ng6 {[%clk 0:01:24]} 25. Qxe6+ {[%clk 0:00:04]}  Kh7 {[%clk 0:01:23]} 26. Rd3 {[%clk 0:00:04]}  Rae8 {[%clk 0:01:19]} 27. Rh3+ {[%clk 0:00:04]}  Nfh4 {[%clk 0:01:19]} 28. Qg4 {[%clk 0:00:03]}  Kg8 {[%clk 0:01:12]} 29. Bxh4 {[%clk 0:00:03]}  Ne7 {[%clk 0:01:07]} 30. Bxe7 {[%clk 0:00:02]}  Rxe7 {[%clk 0:01:07]} 31. Qh4 {[%clk 0:00:03]}  Rf6 {[%clk 0:01:06]} 32. Qh8+ {[%clk 0:00:02]}  Kf7 {[%clk 0:01:06]} 33. f5 {[%clk 0:00:03]}  Be4 {[%clk 0:01:04]} 34. Qh5+ {[%clk 0:00:03]}  Kf8 {[%clk 0:01:03]} 35. Rc3 {[%clk 0:00:03]}  Re8 {[%clk 0:01:02]} 36. Rc7 {[%clk 0:00:03]}  Bd5 {[%clk 0:01:00]} 37. Qh8+ {[%clk 0:00:03]}  Bg8 {[%clk 0:01:00]} 38. Qxg7# {[%clk 0:00:03]} 1-0


[Site "https://www.chess.com"]

[Event "Titled Tuesday Blitz April 26 Early 2022"]
[White "Martin Carmona, Gaston Manuel"]
[Black "Itkis, Boris"]
[WhiteFideId "22284567"]
[BlackFideId "1209167"]
[WhiteElo "2146"]
[BlackElo "2207"]
[Result "1-0"]
[Round "08"]
[TimeControl "180+1"]
[Date "2022.04.26"]
[WhiteClock "0:00:45"]
[BlackClock "0:00:07"]

1. d4 {[%clk 0:03:00]}  Nf6 {[%clk 0:02:58]} 2. Nf3 {[%clk 0:02:56]}  e6 {[%clk 0:02:55]} 3. c4 {[%clk 0:02:56]}  d5 {[%clk 0:02:48]} 4. g3 {[%clk 0:02:56]}  Bb4+ {[%clk 0:02:43]} 5. Bd2 {[%clk 0:02:55]}  Qe7 {[%clk 0:02:41]} 6. Bg2 {[%clk 0:02:55]}  O-O {[%clk 0:02:41]} 7. O-O {[%clk 0:02:55]}  Ne4 {[%clk 0:02:39]} 8. Bc1 {[%clk 0:02:48]}  Nd7 {[%clk 0:02:31]} 9. a3 {[%clk 0:02:47]}  Bd6 {[%clk 0:02:20]} 10. c5 {[%clk 0:02:47]}  Ndxc5 {[%clk 0:02:20]} 11. dxc5 {[%clk 0:02:48]}  Bxc5 {[%clk 0:02:21]} 12. b4 {[%clk 0:02:36]}  Bd6 {[%clk 0:02:19]} 13. Bb2 {[%clk 0:02:36]}  b6 {[%clk 0:02:18]} 14. Nbd2 {[%clk 0:02:36]}  Bb7 {[%clk 0:02:15]} 15. Nxe4 {[%clk 0:02:34]}  dxe4 {[%clk 0:02:16]} 16. Nd4 {[%clk 0:02:34]}  Be5 {[%clk 0:02:08]} 17. Nc6 {[%clk 0:02:31]}  Bxc6 {[%clk 0:02:07]} 18. Bxe5 {[%clk 0:02:31]}  f6 {[%clk 0:02:02]} 19. Qc2 {[%clk 0:02:29]}  Bb5 {[%clk 0:01:45]} 20. Bb2 {[%clk 0:02:18]}  f5 {[%clk 0:01:40]} 21. a4 {[%clk 0:02:15]}  Be8 {[%clk 0:01:38]} 22. b5 {[%clk 0:02:12]}  Qf7 {[%clk 0:01:21]} 23. Be5 {[%clk 0:02:11]}  Rc8 {[%clk 0:01:19]} 24. f3 {[%clk 0:02:02]}  exf3 {[%clk 0:00:50]} 25. Bxf3 {[%clk 0:02:03]}  Bd7 {[%clk 0:00:48]} 26. e4 {[%clk 0:02:00]}  Rfd8 {[%clk 0:00:45]} 27. Rad1 {[%clk 0:01:56]}  Be8 {[%clk 0:00:41]} 28. Rxd8 {[%clk 0:01:51]}  Rxd8 {[%clk 0:00:42]} 29. Qxc7 {[%clk 0:01:50]}  Rd7 {[%clk 0:00:42]} 30. Qc8 {[%clk 0:01:47]}  h6 {[%clk 0:00:39]} 31. exf5 {[%clk 0:01:42]}  exf5 {[%clk 0:00:39]} 32. Bc6 {[%clk 0:01:43]}  Re7 {[%clk 0:00:35]} 33. Bxe8 {[%clk 0:01:20]}  Rxe8 {[%clk 0:00:31]} 34. Qc3 {[%clk 0:01:06]}  Re7 {[%clk 0:00:16]} 35. Bf4 {[%clk 0:00:59]}  Qd5 {[%clk 0:00:13]} 36. Rc1 {[%clk 0:00:54]}  Re2 {[%clk 0:00:12]} 37. Qc4 {[%clk 0:00:54]}  Qxc4 {[%clk 0:00:10]} 38. Rxc4 {[%clk 0:00:55]}  Re1+ {[%clk 0:00:10]} 39. Kf2 {[%clk 0:00:55]}  Ra1 {[%clk 0:00:11]} 40. h4 {[%clk 0:00:53]}  Ra2+ {[%clk 0:00:11]} 41. Ke3 {[%clk 0:00:53]}  Kf7 {[%clk 0:00:09]} 42. Rc7+ {[%clk 0:00:53]}  Ke6 {[%clk 0:00:09]} 43. Rxa7 {[%clk 0:00:52]}  g6 {[%clk 0:00:09]} 44. Ra6 {[%clk 0:00:52]}  Kd5 {[%clk 0:00:09]} 45. Rxb6 {[%clk 0:00:50]}  Ra3+ {[%clk 0:00:09]} 46. Kf2 {[%clk 0:00:49]}  g5 {[%clk 0:00:08]} 47. hxg5 {[%clk 0:00:49]}  hxg5 {[%clk 0:00:09]} 48. Bxg5 {[%clk 0:00:48]}  Rxa4 {[%clk 0:00:10]} 49. Bf4 {[%clk 0:00:48]}  Ke4 {[%clk 0:00:08]} 50. Kg2 {[%clk 0:00:47]}  Ra2+ {[%clk 0:00:08]} 51. Kh3 {[%clk 0:00:47]}  Kf3 {[%clk 0:00:09]} 52. Kh4 {[%clk 0:00:45]}  Rh2+ {[%clk 0:00:06]} 53. Kg5 {[%clk 0:00:45]}  Ke4 {[%clk 0:00:07]} 54. Re6+ {[%clk 0:00:45]}  Kd5 {[%clk 0:00:07]} 55. Re5+ {[%clk 0:00:45]}  Kc4 {[%clk 0:00:07]} 56. Kxf5 {[%clk 0:00:45]}  Rb2 {[%clk 0:00:06]} 57. g4 {[%clk 0:00:45]}  Rxb5 {[%clk 0:00:06]} 58. Rxb5 {[%clk 0:00:45]}  Kxb5 {[%clk 0:00:07]} 59. g5 {[%clk 0:00:45]} 1-0


[Site "https://www.chess.com"]

[Event "Titled Tuesday Blitz April 26 Early 2022"]
[White "Melikhov, Evgeny V."]
[Black "Bashirli, Saadat"]
[WhiteFideId "4122046"]
[BlackFideId "13429990"]
[WhiteElo "1931"]
[BlackElo "1173"]
[Result "1-0"]
[Round "08"]
[TimeControl "180+1"]
[Date "2022.04.26"]
[WhiteClock "0:01:00"]
[BlackClock "0:00:50"]

1. d4 {[%clk 0:03:00]}  d5 {[%clk 0:02:59]} 2. c4 {[%clk 0:03:00]}  e6 {[%clk 0:03:00]} 3. Nc3 {[%clk 0:03:00]}  c6 {[%clk 0:03:00]} 4. e3 {[%clk 0:03:00]}  Nf6 {[%clk 0:02:57]} 5. Nf3 {[%clk 0:02:58]}  dxc4 {[%clk 0:02:57]} 6. Bxc4 {[%clk 0:02:58]}  b5 {[%clk 0:02:58]} 7. Bd3 {[%clk 0:02:57]}  Bb7 {[%clk 0:02:58]} 8. O-O {[%clk 0:02:55]}  Nbd7 {[%clk 0:02:55]} 9. e4 {[%clk 0:02:55]}  Be7 {[%clk 0:02:51]} 10. e5 {[%clk 0:02:51]}  Nd5 {[%clk 0:02:49]} 11. Ne4 {[%clk 0:02:51]}  O-O {[%clk 0:02:46]} 12. Bg5 {[%clk 0:02:50]}  Bxg5 {[%clk 0:02:43]} 13. Nexg5 {[%clk 0:02:44]}  g6 {[%clk 0:02:42]} 14. Ne4 {[%clk 0:02:42]}  Nf4 {[%clk 0:02:38]} 15. Nd6 {[%clk 0:02:30]}  Qc7 {[%clk 0:02:34]} 16. Be4 {[%clk 0:02:23]}  Rad8 {[%clk 0:02:25]} 17. Qd2 {[%clk 0:02:20]}  Nh5 {[%clk 0:02:20]} 18. Qh6 {[%clk 0:02:18]}  f6 {[%clk 0:02:13]} 19. Bxg6 {[%clk 0:01:37]}  hxg6 {[%clk 0:02:09]} 20. Qxg6+ {[%clk 0:01:37]}  Ng7 {[%clk 0:02:10]} 21. Rac1 {[%clk 0:01:26]}  fxe5 {[%clk 0:02:06]} 22. Ng5 {[%clk 0:01:20]}  Nf6 {[%clk 0:01:31]} 23. dxe5 {[%clk 0:01:18]}  Rxd6 {[%clk 0:01:27]} 24. exf6 {[%clk 0:01:15]}  Rxf6 {[%clk 0:01:04]} 25. Qh7+ {[%clk 0:01:13]}  Kf8 {[%clk 0:01:03]} 26. Qh8+ {[%clk 0:01:13]}  Ke7 {[%clk 0:01:02]} 27. Qxg7+ {[%clk 0:01:13]}  Kd8 {[%clk 0:01:02]} 28. Qxf6+ {[%clk 0:01:12]}  Kc8 {[%clk 0:01:03]} 29. Rfd1 {[%clk 0:01:07]}  Rxd1+ {[%clk 0:01:02]} 30. Rxd1 {[%clk 0:01:06]}  Ba6 {[%clk 0:00:56]} 31. Nxe6 {[%clk 0:01:05]}  Qh7 {[%clk 0:00:52]} 32. Qd8+ {[%clk 0:01:02]}  Kb7 {[%clk 0:00:52]} 33. Rd7+ {[%clk 0:01:02]}  Qxd7 {[%clk 0:00:49]} 34. Qxd7+ {[%clk 0:01:01]}  Kb6 {[%clk 0:00:50]} 35. Qc7# {[%clk 0:01:00]} 1-0


[Site "https://www.chess.com"]